[Event "Titled Tuesday Blitz July 13 2021"]
[White "Martinez Alcantara, Jose Eduardo"]
[Black "Cornette, Matthieu"]
[WhiteFideId "3805662"]
[BlackFideId "620084"]
[WhiteElo "2690"]
[BlackElo "2500"]
[Result "1-0"]
[Round "04"]
[TimeControl "180+1"]
[Date "2021.07.13"]
[WhiteClock "0:00:05"]
[BlackClock "0:00:04"]

1. c4 {[%clk 0:03:00]}  b6 {[%clk 0:02:58]} 2. Nc3 {[%clk 0:03:00]}  Bb7 {[%clk 0:02:58]} 3. e4 {[%clk 0:03:01]}  e5 {[%clk 0:02:58]} 4. g3 {[%clk 0:03:01]}  f5 {[%clk 0:02:54]} 5. d3 {[%clk 0:02:58]}  Nf6 {[%clk 0:02:54]} 6. Bg2 {[%clk 0:02:59]}  Bc5 {[%clk 0:02:50]} 7. Nge2 {[%clk 0:02:30]}  fxe4 {[%clk 0:02:49]} 8. dxe4 {[%clk 0:02:29]}  O-O {[%clk 0:02:47]} 9. f3 {[%clk 0:02:26]}  Nc6 {[%clk 0:02:30]} 10. a3 {[%clk 0:02:05]}  a5 {[%clk 0:02:29]} 11. b3 {[%clk 0:02:05]}  d6 {[%clk 0:02:03]} 12. Rb1 {[%clk 0:02:01]}  Kh8 {[%clk 0:01:48]} 13. Qd3 {[%clk 0:02:00]}  Qe7 {[%clk 0:01:43]} 14. Nb5 {[%clk 0:01:47]}  Ba6 {[%clk 0:01:38]} 15. Be3 {[%clk 0:01:43]}  Bxb5 {[%clk 0:01:29]} 16. cxb5 {[%clk 0:01:42]}  Bxe3 {[%clk 0:01:27]} 17. Qxe3 {[%clk 0:01:43]}  Nd8 {[%clk 0:01:26]} 18. O-O {[%clk 0:01:34]}  Ne6 {[%clk 0:01:26]} 19. Rbc1 {[%clk 0:01:31]}  Nd7 {[%clk 0:01:21]} 20. Rc4 {[%clk 0:01:20]}  Ndc5 {[%clk 0:01:18]} 21. Bh3 {[%clk 0:01:14]}  Qe8 {[%clk 0:01:13]} 22. b4 {[%clk 0:00:51]}  axb4 {[%clk 0:01:05]} 23. axb4 {[%clk 0:00:52]}  Qxb5 {[%clk 0:01:04]} 24. Rfc1 {[%clk 0:00:52]}  Nd4 {[%clk 0:00:44]} 25. Nxd4 {[%clk 0:00:52]}  exd4 {[%clk 0:00:41]} 26. Rxd4 {[%clk 0:00:53]}  Na6 {[%clk 0:00:34]} 27. Bf1 {[%clk 0:00:43]}  Qd7 {[%clk 0:00:33]} 28. Qd2 {[%clk 0:00:25]}  Qe7 {[%clk 0:00:27]} 29. Ra1 {[%clk 0:00:18]}  c5 {[%clk 0:00:27]} 30. bxc5 {[%clk 0:00:13]}  dxc5 {[%clk 0:00:11]} 31. Rd7 {[%clk 0:00:13]}  Qf6 {[%clk 0:00:11]} 32. Rxa6 {[%clk 0:00:10]}  Qxf3 {[%clk 0:00:11]} 33. Bg2 {[%clk 0:00:04]}  Qb3 {[%clk 0:00:04]} 34. Rxa8 {[%clk 0:00:05]} 1-0


[Site "https://www.chess.com"]

[Event "Titled Tuesday Blitz July 13 2021"]
[White "Martinez Reyes, Pedro Ramon"]
[Black "Willow, Jonah B"]
[WhiteFideId "3901807"]
[BlackFideId "438804"]
[WhiteElo "2398"]
[BlackElo "2261"]
[Result "1/2-1/2"]
[Round "04"]
[TimeControl "180+1"]
[Date "2021.07.13"]
[WhiteClock "0:00:06"]
[BlackClock "0:00:06"]

1. e4 {[%clk 0:02:34]}  c5 {[%clk 0:02:59]} 2. Nf3 {[%clk 0:02:33]}  g6 {[%clk 0:02:57]} 3. d4 {[%clk 0:02:33]}  cxd4 {[%clk 0:02:58]} 4. Qxd4 {[%clk 0:02:33]}  Nf6 {[%clk 0:02:58]} 5. Bb5 {[%clk 0:02:31]}  Nc6 {[%clk 0:02:59]} 6. Bxc6 {[%clk 0:02:31]}  bxc6 {[%clk 0:02:58]} 7. e5 {[%clk 0:02:27]}  Nd5 {[%clk 0:02:55]} 8. O-O {[%clk 0:02:25]}  Bg7 {[%clk 0:02:55]} 9. Qh4 {[%clk 0:02:24]}  h6 {[%clk 0:02:37]} 10. c4 {[%clk 0:02:23]}  Nc7 {[%clk 0:02:37]} 11. Nc3 {[%clk 0:02:22]}  Ne6 {[%clk 0:02:36]} 12. Rd1 {[%clk 0:02:21]}  Rb8 {[%clk 0:02:33]} 13. Qg3 {[%clk 0:02:14]}  O-O {[%clk 0:02:33]} 14. Nd4 {[%clk 0:02:09]}  Nxd4 {[%clk 0:02:31]} 15. Rxd4 {[%clk 0:02:10]}  d6 {[%clk 0:02:28]} 16. Rh4 {[%clk 0:01:26]}  Bxe5 {[%clk 0:02:20]} 17. Bf4 {[%clk 0:01:23]}  Bxf4 {[%clk 0:02:05]} 18. Qxf4 {[%clk 0:01:24]}  g5 {[%clk 0:01:56]} 19. Qg3 {[%clk 0:01:17]}  Kg7 {[%clk 0:01:56]} 20. f4 {[%clk 0:01:12]}  f6 {[%clk 0:01:37]} 21. Ne4 {[%clk 0:01:11]}  e5 {[%clk 0:01:21]} 22. fxg5 {[%clk 0:01:06]}  fxg5 {[%clk 0:01:19]} 23. Rd1 {[%clk 0:01:03]}  Rf4 {[%clk 0:00:48]} 24. Rxf4 {[%clk 0:00:58]}  exf4 {[%clk 0:00:49]} 25. Qc3+ {[%clk 0:00:58]}  Kg8 {[%clk 0:00:38]} 26. Rxd6 {[%clk 0:00:57]}  Qb6+ {[%clk 0:00:38]} 27. c5 {[%clk 0:00:49]}  Qxb2 {[%clk 0:00:34]} 28. Rd8+ {[%clk 0:00:43]}  Kh7 {[%clk 0:00:12]} 29. Qxb2 {[%clk 0:00:24]}  Rxb2 {[%clk 0:00:13]} 30. Rxc8 {[%clk 0:00:24]}  Kg6 {[%clk 0:00:10]} 31. g4 {[%clk 0:00:20]}  fxg3 {[%clk 0:00:08]} 32. Nxg3 {[%clk 0:00:18]}  g4 {[%clk 0:00:08]} 33. Rxc6+ {[%clk 0:00:19]}  Kg5 {[%clk 0:00:08]} 34. Rc7 {[%clk 0:00:19]}  Rxa2 {[%clk 0:00:07]} 35. c6 {[%clk 0:00:19]}  Rc2 {[%clk 0:00:07]} 36. Rc8 {[%clk 0:00:18]}  Kh4 {[%clk 0:00:04]} 37. c7 {[%clk 0:00:18]}  Kh3 {[%clk 0:00:04]} 38. Nf1 {[%clk 0:00:17]}  Rc1 {[%clk 0:00:04]} 39. Kf2 {[%clk 0:00:15]}  Kh4 {[%clk 0:00:03]} 40. Ng3 {[%clk 0:00:15]}  Rc2+ {[%clk 0:00:03]} 41. Ke3 {[%clk 0:00:14]}  Rc5 {[%clk 0:00:04]} 42. Kf4 {[%clk 0:00:14]}  Rc4+ {[%clk 0:00:05]} 43. Ne4 {[%clk 0:00:14]}  Kh3 {[%clk 0:00:04]} 44. Rh8 {[%clk 0:00:13]}  Rxc7 {[%clk 0:00:04]} 45. Rxh6+ {[%clk 0:00:13]}  Kg2 {[%clk 0:00:04]} 46. Kxg4 {[%clk 0:00:14]}  Rc4 {[%clk 0:00:04]} 47. Kf4 {[%clk 0:00:14]}  a5 {[%clk 0:00:05]} 48. h4 {[%clk 0:00:14]}  a4 {[%clk 0:00:04]} 49. Ra6 {[%clk 0:00:14]}  Kh3 {[%clk 0:00:01]} 50. h5 {[%clk 0:00:14]}  Kh4 {[%clk 0:00:01]} 51. h6 {[%clk 0:00:15]}  Kh5 {[%clk 0:00:02]} 52. h7 {[%clk 0:00:15]}  Rc8 {[%clk 0:00:03]} 53. Rxa4 {[%clk 0:00:14]}  Kg6 {[%clk 0:00:03]} 54. Ra7 {[%clk 0:00:14]}  Rh8 {[%clk 0:00:03]} 55. Ng5 {[%clk 0:00:15]}  Kf6 {[%clk 0:00:03]} 56. Kg4 {[%clk 0:00:15]}  Kg6 {[%clk 0:00:04]} 57. Ra6+ {[%clk 0:00:15]}  Kg7 {[%clk 0:00:04]} 58. Kf5 {[%clk 0:00:15]}  Rf8+ {[%clk 0:00:04]} 59. Kg4 {[%clk 0:00:15]}  Kh8 {[%clk 0:00:04]} 60. Kh5 {[%clk 0:00:14]}  Rc8 {[%clk 0:00:04]} 61. Rg6 {[%clk 0:00:13]}  Rd8 {[%clk 0:00:04]} 62. Nf7+ {[%clk 0:00:13]}  Kxh7 {[%clk 0:00:05]} 63. Ng5+ {[%clk 0:00:13]}  Kh8 {[%clk 0:00:05]} 64. Kh6 {[%clk 0:00:13]}  Rf8 {[%clk 0:00:04]} 65. Rd6 {[%clk 0:00:11]}  Kg8 {[%clk 0:00:03]} 66. Rg6+ {[%clk 0:00:11]}  Kh8 {[%clk 0:00:03]} 67. Ne6 {[%clk 0:00:11]}  Re8 {[%clk 0:00:02]} 68. Kg5 {[%clk 0:00:11]}  Kh7 {[%clk 0:00:02]} 69. Rf6 {[%clk 0:00:08]}  Kg8 {[%clk 0:00:03]} 70. Kg6 {[%clk 0:00:08]}  Rc8 {[%clk 0:00:03]} 71. Ng5 {[%clk 0:00:08]}  Kh8 {[%clk 0:00:03]} 72. Ra6 {[%clk 0:00:08]}  Rb8 {[%clk 0:00:03]} 73. Nf7+ {[%clk 0:00:07]}  Kg8 {[%clk 0:00:04]} 74. Ng5 {[%clk 0:00:07]}  Kh8 {[%clk 0:00:04]} 75. Ra7 {[%clk 0:00:08]}  Rb6+ {[%clk 0:00:04]} 76. Kh5 {[%clk 0:00:08]}  Rb8 {[%clk 0:00:05]} 77. Nf7+ {[%clk 0:00:08]}  Kg7 {[%clk 0:00:05]} 78. Ng5+ {[%clk 0:00:09]}  Kf6 {[%clk 0:00:06]} 79. Rf7+ {[%clk 0:00:08]}  Ke5 {[%clk 0:00:06]} 80. Rf2 {[%clk 0:00:09]}  Rb1 {[%clk 0:00:06]} 81. Kg4 {[%clk 0:00:09]}  Rg1+ {[%clk 0:00:06]} 82. Kh5 {[%clk 0:00:09]}  Ra1 {[%clk 0:00:07]} 83. Kg6 {[%clk 0:00:09]}  Rg1 {[%clk 0:00:06]} 84. Rf5+ {[%clk 0:00:07]}  Kd6 {[%clk 0:00:07]} 85. Kf6 {[%clk 0:00:07]}  Ra1 {[%clk 0:00:07]} 86. Ne4+ {[%clk 0:00:07]}  Kc6 {[%clk 0:00:07]} 87. Ke5 {[%clk 0:00:07]}  Re1 {[%clk 0:00:08]} 88. Rf6+ {[%clk 0:00:07]}  Kd7 {[%clk 0:00:09]} 89. Rd6+ {[%clk 0:00:07]}  Ke7 {[%clk 0:00:09]} 90. Ra6 {[%clk 0:00:07]}  Kd7 {[%clk 0:00:09]} 91. Kd5 {[%clk 0:00:06]}  Rd1+ {[%clk 0:00:09]} 92. Ke5 {[%clk 0:00:06]}  Re1 {[%clk 0:00:10]} 93. Kd4 {[%clk 0:00:06]}  Rd1+ {[%clk 0:00:10]} 94. Kc4 {[%clk 0:00:07]}  Rc1+ {[%clk 0:00:10]} 95. Nc3 {[%clk 0:00:07]}  Ke7 {[%clk 0:00:10]} 96. Kd4 {[%clk 0:00:07]}  Kf7 {[%clk 0:00:10]} 97. Ne4 {[%clk 0:00:07]}  Re1 {[%clk 0:00:09]} 98. Ke5 {[%clk 0:00:07]}  Kg7 {[%clk 0:00:07]} 99. Kf5 {[%clk 0:00:06]}  Rf1+ {[%clk 0:00:07]} 100. Kg4 {[%clk 0:00:06]}  Kf7 {[%clk 0:00:06]} 101. Ng3 {[%clk 0:00:06]}  Rg1 {[%clk 0:00:05]} 102. Kf4 {[%clk 0:00:06]}  Ke7 {[%clk 0:00:05]} 103. Ne4 {[%clk 0:00:06]}  Kd7 {[%clk 0:00:06]} 104. Ke5 {[%clk 0:00:06]}  Re1 {[%clk 0:00:06]} 1/2-1/2


[Site "https://www.chess.com"]

[Event "Titled Tuesday Blitz July 13 2021"]
[White "Matinian, Nikita"]
[Black "Shevchenko, Kirill"]
[WhiteFideId "24129100"]
[BlackFideId "14129574"]
[WhiteElo "2410"]
[BlackElo "2569"]
[Result "1-0"]
[Round "04"]
[TimeControl "180+1"]
[Date "2021.07.13"]
[WhiteClock "0:00:31"]
[BlackClock "0:00:01"]

1. e4 {[%clk 0:03:00]}  c5 {[%clk 0:02:57]} 2. Nf3 {[%clk 0:03:00]}  g6 {[%clk 0:02:57]} 3. c3 {[%clk 0:03:00]}  Bg7 {[%clk 0:02:56]} 4. d4 {[%clk 0:03:00]}  cxd4 {[%clk 0:02:57]} 5. cxd4 {[%clk 0:03:01]}  d5 {[%clk 0:02:58]} 6. e5 {[%clk 0:03:01]}  a6 {[%clk 0:02:58]} 7. h4 {[%clk 0:02:58]}  h6 {[%clk 0:02:36]} 8. Nc3 {[%clk 0:02:57]}  Nc6 {[%clk 0:02:37]} 9. Be3 {[%clk 0:02:55]}  Bg4 {[%clk 0:02:35]} 10. Be2 {[%clk 0:02:37]}  e6 {[%clk 0:02:25]} 11. Rc1 {[%clk 0:02:37]}  Nge7 {[%clk 0:02:25]} 12. Na4 {[%clk 0:02:18]}  Nf5 {[%clk 0:02:16]} 13. Nc5 {[%clk 0:02:12]}  Qa5+ {[%clk 0:02:09]} 14. Kf1 {[%clk 0:02:05]}  Qb6 {[%clk 0:01:57]} 15. Qd2 {[%clk 0:01:11]}  Rc8 {[%clk 0:01:46]} 16. Rc3 {[%clk 0:01:09]}  Nxe3+ {[%clk 0:01:33]} 17. fxe3 {[%clk 0:01:08]}  h5 {[%clk 0:01:06]} 18. Rb3 {[%clk 0:01:06]}  Qa5 {[%clk 0:01:01]} 19. Nxb7 {[%clk 0:01:02]}  Qxd2 {[%clk 0:00:31]} 20. Nxd2 {[%clk 0:01:03]}  Nxd4 {[%clk 0:00:31]} 21. Nd6+ {[%clk 0:00:56]}  Kf8 {[%clk 0:00:31]} 22. exd4 {[%clk 0:00:41]}  Rc1+ {[%clk 0:00:31]} 23. Kf2 {[%clk 0:00:42]}  Rxh1 {[%clk 0:00:32]} 24. Rb8+ {[%clk 0:00:42]}  Ke7 {[%clk 0:00:32]} 25. Rb7+ {[%clk 0:00:42]}  Kf8 {[%clk 0:00:32]} 26. Nxf7 {[%clk 0:00:35]}  Bxe2 {[%clk 0:00:10]} 27. Kxe2 {[%clk 0:00:36]}  Rxh4 {[%clk 0:00:10]} 28. Nf3 {[%clk 0:00:33]}  Re4+ {[%clk 0:00:07]} 29. Kd3 {[%clk 0:00:33]}  Rg8 {[%clk 0:00:01]} 30. N3g5 {[%clk 0:00:34]}  Ke8 {[%clk 0:00:01]} 31. Nd6+ {[%clk 0:00:31]} 1-0


[Site "https://www.chess.com"]

[Event "Titled Tuesday Blitz July 13 2021"]
[White "Nabaty, Tamir"]
[Black "Shahade, Gregory"]
[WhiteFideId "2809052"]
[BlackFideId "2009064"]
[WhiteElo "2627"]
[BlackElo "2720"]
[Result "1-0"]
[Round "04"]
[TimeControl "180+1"]
[Date "2021.07.13"]
[WhiteClock "0:00:21"]
[BlackClock "0:00:12"]

1. Nf3 {[%clk 0:03:00]}  Nf6 {[%clk 0:02:59]} 2. b3 {[%clk 0:03:00]}  g6 {[%clk 0:02:55]} 3. Bb2 {[%clk 0:03:00]}  Bg7 {[%clk 0:02:56]} 4. g3 {[%clk 0:03:01]}  b5 {[%clk 0:02:56]} 5. Bg2 {[%clk 0:03:01]}  Bb7 {[%clk 0:02:57]} 6. O-O {[%clk 0:03:01]}  O-O {[%clk 0:02:57]} 7. c4 {[%clk 0:03:01]}  a6 {[%clk 0:02:55]} 8. d4 {[%clk 0:02:59]}  e6 {[%clk 0:02:47]} 9. Nc3 {[%clk 0:02:56]}  Ne4 {[%clk 0:02:42]} 10. Rc1 {[%clk 0:02:53]}  d6 {[%clk 0:02:37]} 11. Nxe4 {[%clk 0:02:47]}  Bxe4 {[%clk 0:02:36]} 12. Qd2 {[%clk 0:02:45]}  Nd7 {[%clk 0:02:31]} 13. Rfd1 {[%clk 0:02:45]}  bxc4 {[%clk 0:02:30]} 14. Rxc4 {[%clk 0:02:43]}  Nb6 {[%clk 0:02:28]} 15. Rcc1 {[%clk 0:02:43]}  a5 {[%clk 0:02:22]} 16. Ne1 {[%clk 0:02:42]}  Bxg2 {[%clk 0:02:17]} 17. Kxg2 {[%clk 0:02:40]}  a4 {[%clk 0:02:17]} 18. e4 {[%clk 0:02:38]}  axb3 {[%clk 0:02:16]} 19. axb3 {[%clk 0:02:39]}  Ra2 {[%clk 0:02:12]} 20. Ra1 {[%clk 0:02:38]}  Qa8 {[%clk 0:02:12]} 21. Rxa2 {[%clk 0:02:33]}  Qxa2 {[%clk 0:02:13]} 22. Qc3 {[%clk 0:02:33]}  Qa8 {[%clk 0:02:05]} 23. f3 {[%clk 0:02:33]}  c5 {[%clk 0:02:00]} 24. Qc2 {[%clk 0:02:25]}  cxd4 {[%clk 0:01:55]} 25. Bxd4 {[%clk 0:02:26]}  Bxd4 {[%clk 0:01:51]} 26. Rxd4 {[%clk 0:02:26]}  d5 {[%clk 0:01:51]} 27. Qd2 {[%clk 0:02:13]}  Rc8 {[%clk 0:01:42]} 28. Nd3 {[%clk 0:02:04]}  Qa1 {[%clk 0:01:31]} 29. Rb4 {[%clk 0:02:03]}  Qb1 {[%clk 0:01:19]} 30. Nf2 {[%clk 0:01:57]}  Nd7 {[%clk 0:00:48]} 31. exd5 {[%clk 0:01:54]}  exd5 {[%clk 0:00:49]} 32. Qxd5 {[%clk 0:01:49]}  Nf6 {[%clk 0:00:49]} 33. Qe5 {[%clk 0:01:44]}  Rc6 {[%clk 0:00:40]} 34. Rb8+ {[%clk 0:01:37]}  Kg7 {[%clk 0:00:40]} 35. g4 {[%clk 0:01:26]}  h6 {[%clk 0:00:33]} 36. h4 {[%clk 0:01:20]}  Rc1 {[%clk 0:00:33]} 37. g5 {[%clk 0:01:12]}  Rg1+ {[%clk 0:00:32]} 38. Kh2 {[%clk 0:01:12]}  hxg5 {[%clk 0:00:27]} 39. hxg5 {[%clk 0:01:11]}  Kh7 {[%clk 0:00:22]} 40. gxf6 {[%clk 0:00:46]}  Qf1 {[%clk 0:00:20]} 41. Rh8+ {[%clk 0:00:37]}  Kxh8 {[%clk 0:00:19]} 42. Qe8+ {[%clk 0:00:37]}  Kh7 {[%clk 0:00:20]} 43. Qxf7+ {[%clk 0:00:37]}  Kh6 {[%clk 0:00:20]} 44. Qg7+ {[%clk 0:00:29]}  Kg5 {[%clk 0:00:15]} 45. Nh3+ {[%clk 0:00:22]}  Kf5 {[%clk 0:00:15]} 46. Qd7+ {[%clk 0:00:22]}  Kxf6 {[%clk 0:00:15]} 47. Qd4+ {[%clk 0:00:21]}  Kf7 {[%clk 0:00:14]} 48. Nxg1 {[%clk 0:00:21]}  g5 {[%clk 0:00:12]} 49. Qc4+ {[%clk 0:00:20]}  Qxc4 {[%clk 0:00:12]} 50. bxc4 {[%clk 0:00:21]} 1-0


[Site "https://www.chess.com"]

[Event "Titled Tuesday Blitz July 13 2021"]
[White "Nguyen, Quoc Hy"]
[Black "Tomb, Maroun"]
[WhiteFideId "12410853"]
[BlackFideId "5300398"]
[WhiteElo "1975"]
[BlackElo "2519"]
[Result "1/2-1/2"]
[Round "04"]
[TimeControl "180+1"]
[Date "2021.07.13"]
[WhiteClock "0:00:08"]
[BlackClock "0:00:09"]

1. d4 {[%clk 0:03:00]}  d6 {[%clk 0:02:59]} 2. c4 {[%clk 0:03:01]}  Nf6 {[%clk 0:02:59]} 3. Nc3 {[%clk 0:03:01]}  Nbd7 {[%clk 0:03:00]} 4. e4 {[%clk 0:03:01]}  e5 {[%clk 0:03:00]} 5. Nf3 {[%clk 0:03:02]}  Be7 {[%clk 0:03:00]} 6. Be2 {[%clk 0:03:02]}  c6 {[%clk 0:02:59]} 7. O-O {[%clk 0:03:03]}  a5 {[%clk 0:02:57]} 8. h3 {[%clk 0:03:03]}  O-O {[%clk 0:02:56]} 9. Be3 {[%clk 0:03:03]}  a4 {[%clk 0:02:55]} 10. Qc2 {[%clk 0:03:02]}  Qa5 {[%clk 0:02:54]} 11. Rfd1 {[%clk 0:03:00]}  exd4 {[%clk 0:02:51]} 12. Nxd4 {[%clk 0:03:00]}  Nc5 {[%clk 0:02:52]} 13. f4 {[%clk 0:02:48]}  Re8 {[%clk 0:02:43]} 14. Bf3 {[%clk 0:02:42]}  Bf8 {[%clk 0:02:34]} 15. Rab1 {[%clk 0:02:39]}  Qb4 {[%clk 0:02:26]} 16. a3 {[%clk 0:02:36]}  Qa5 {[%clk 0:02:15]} 17. Bf2 {[%clk 0:02:32]}  h5 {[%clk 0:02:09]} 18. Bh4 {[%clk 0:02:30]}  Be7 {[%clk 0:01:57]} 19. Re1 {[%clk 0:01:35]}  Ne6 {[%clk 0:01:32]} 20. Nf5 {[%clk 0:01:31]}  Nxf4 {[%clk 0:01:23]} 21. Nxe7+ {[%clk 0:01:13]}  Rxe7 {[%clk 0:01:24]} 22. Bxf6 {[%clk 0:00:45]}  gxf6 {[%clk 0:01:25]} 23. Qf2 {[%clk 0:00:44]}  Qg5 {[%clk 0:01:24]} 24. Kh2 {[%clk 0:00:43]}  h4 {[%clk 0:01:24]} 25. Rbd1 {[%clk 0:00:43]}  Be6 {[%clk 0:01:05]} 26. Rxd6 {[%clk 0:00:39]}  Bxc4 {[%clk 0:00:56]} 27. e5 {[%clk 0:00:35]}  Rxe5 {[%clk 0:00:44]} 28. Ne4 {[%clk 0:00:33]}  Rxe4 {[%clk 0:00:37]} 29. Rxe4 {[%clk 0:00:29]}  Be6 {[%clk 0:00:29]} 30. Qe3 {[%clk 0:00:26]}  Nd5 {[%clk 0:00:22]} 31. Qxg5+ {[%clk 0:00:19]}  fxg5 {[%clk 0:00:23]} 32. Re5 {[%clk 0:00:19]}  Kf8 {[%clk 0:00:23]} 33. Bxd5 {[%clk 0:00:17]}  cxd5 {[%clk 0:00:22]} 34. Rb6 {[%clk 0:00:16]}  Rc8 {[%clk 0:00:17]} 35. Rxb7 {[%clk 0:00:15]}  d4 {[%clk 0:00:17]} 36. Rb4 {[%clk 0:00:14]}  Rd8 {[%clk 0:00:16]} 37. Re2 {[%clk 0:00:13]}  Bb3 {[%clk 0:00:14]} 38. Rd2 {[%clk 0:00:11]}  d3 {[%clk 0:00:14]} 39. Rb5 {[%clk 0:00:10]}  f6 {[%clk 0:00:13]} 40. Kg1 {[%clk 0:00:10]}  Kf7 {[%clk 0:00:13]} 41. Kf2 {[%clk 0:00:10]}  Kg6 {[%clk 0:00:14]} 42. Rb4 {[%clk 0:00:09]}  Bc2 {[%clk 0:00:12]} 43. Ke3 {[%clk 0:00:09]}  Re8+ {[%clk 0:00:12]} 44. Kd4 {[%clk 0:00:09]}  Rd8+ {[%clk 0:00:11]} 45. Kc3 {[%clk 0:00:09]}  Rc8+ {[%clk 0:00:11]} 46. Rc4 {[%clk 0:00:09]}  Rb8 {[%clk 0:00:12]} 47. Rb4 {[%clk 0:00:09]}  Rc8+ {[%clk 0:00:12]} 48. Kd4 {[%clk 0:00:09]}  Rd8+ {[%clk 0:00:12]} 49. Ke3 {[%clk 0:00:09]}  Re8+ {[%clk 0:00:13]} 50. Kf2 {[%clk 0:00:10]}  f5 {[%clk 0:00:12]} 51. Rb6+ {[%clk 0:00:09]}  Kh5 {[%clk 0:00:12]} 52. Rb5 {[%clk 0:00:09]}  Kg6 {[%clk 0:00:12]} 53. Rc5 {[%clk 0:00:09]}  g4 {[%clk 0:00:10]} 54. Rc4 {[%clk 0:00:08]}  g3+ {[%clk 0:00:09]} 55. Kf3 {[%clk 0:00:07]}  Kg5 {[%clk 0:00:10]} 56. Rc7 {[%clk 0:00:07]}  Re4 {[%clk 0:00:09]} 57. Rg7+ {[%clk 0:00:07]}  Kf6 {[%clk 0:00:08]} 58. Rg8 {[%clk 0:00:08]}  Re1 {[%clk 0:00:08]} 59. Rf8+ {[%clk 0:00:08]}  Kg5 {[%clk 0:00:08]} 60. Rg8+ {[%clk 0:00:08]}  Kf6 {[%clk 0:00:08]} 61. Rf8+ {[%clk 0:00:08]}  Kg5 {[%clk 0:00:09]} 62. Rg8+ {[%clk 0:00:08]}  Kf6 {[%clk 0:00:09]} 1/2-1/2


[Site "https://www.chess.com"]

[Event "Titled Tuesday Blitz July 13 2021"]
[White "Odegov, Artem"]
[Black "Svane, Frederik"]
[WhiteFideId "34183644"]
[BlackFideId "12923044"]
[WhiteElo "2288"]
[BlackElo "2459"]
[Result "0-1"]
[Round "04"]
[TimeControl "180+1"]
[Date "2021.07.13"]
[WhiteClock "0:00:01"]
[BlackClock "0:00:17"]

1. d4 {[%clk 0:03:00]}  Nf6 {[%clk 0:03:00]} 2. c4 {[%clk 0:03:01]}  e6 {[%clk 0:03:00]} 3. Nf3 {[%clk 0:03:01]}  b6 {[%clk 0:02:56]} 4. g3 {[%clk 0:03:00]}  Bb4+ {[%clk 0:02:56]} 5. Bd2 {[%clk 0:03:00]}  Be7 {[%clk 0:02:56]} 6. Bg2 {[%clk 0:03:00]}  Bb7 {[%clk 0:02:56]} 7. O-O {[%clk 0:02:59]}  O-O {[%clk 0:02:56]} 8. Bg5 {[%clk 0:02:58]}  h6 {[%clk 0:02:48]} 9. Bxf6 {[%clk 0:02:52]}  Bxf6 {[%clk 0:02:49]} 10. Nc3 {[%clk 0:02:52]}  d5 {[%clk 0:02:37]} 11. cxd5 {[%clk 0:02:51]}  exd5 {[%clk 0:02:38]} 12. Rc1 {[%clk 0:02:51]}  Re8 {[%clk 0:02:31]} 13. e3 {[%clk 0:02:42]}  Na6 {[%clk 0:02:18]} 14. Qa4 {[%clk 0:02:34]}  c6 {[%clk 0:02:15]} 15. Rfd1 {[%clk 0:02:26]}  Re7 {[%clk 0:02:10]} 16. b4 {[%clk 0:02:21]}  b5 {[%clk 0:02:06]} 17. Qb3 {[%clk 0:02:20]}  Nc7 {[%clk 0:02:06]} 18. Nd2 {[%clk 0:02:16]}  Ne8 {[%clk 0:01:57]} 19. a4 {[%clk 0:01:15]}  a6 {[%clk 0:01:57]} 20. Qb2 {[%clk 0:01:12]}  Nd6 {[%clk 0:01:54]} 21. Nb3 {[%clk 0:01:12]}  Bc8 {[%clk 0:01:46]} 22. Nc5 {[%clk 0:01:08]}  Bf5 {[%clk 0:01:44]} 23. Re1 {[%clk 0:01:05]}  g6 {[%clk 0:01:38]} 24. a5 {[%clk 0:01:04]}  Bg7 {[%clk 0:01:35]} 25. Rcd1 {[%clk 0:01:03]}  Qe8 {[%clk 0:01:27]} 26. Qa2 {[%clk 0:00:49]}  h5 {[%clk 0:01:23]} 27. h4 {[%clk 0:00:45]}  Bg4 {[%clk 0:01:03]} 28. Rd3 {[%clk 0:00:37]}  Bf5 {[%clk 0:01:02]} 29. Rdd1 {[%clk 0:00:37]}  Raa7 {[%clk 0:00:59]} 30. Ne2 {[%clk 0:00:24]}  Qa8 {[%clk 0:00:54]} 31. Nf4 {[%clk 0:00:23]}  Re8 {[%clk 0:00:53]} 32. Kh2 {[%clk 0:00:20]}  Rae7 {[%clk 0:00:53]} 33. Rc1 {[%clk 0:00:17]}  Qa7 {[%clk 0:00:47]} 34. Rcd1 {[%clk 0:00:12]}  Bc8 {[%clk 0:00:46]} 35. Bf3 {[%clk 0:00:06]}  Qc7 {[%clk 0:00:46]} 36. Ncd3 {[%clk 0:00:06]}  Nc4 {[%clk 0:00:44]} 37. Nc5 {[%clk 0:00:06]}  Nd6 {[%clk 0:00:43]} 38. Qe2 {[%clk 0:00:05]}  Nf5 {[%clk 0:00:40]} 39. Bxd5 {[%clk 0:00:04]}  Nxd4 {[%clk 0:00:33]} 40. Rxd4 {[%clk 0:00:04]}  Bxd4 {[%clk 0:00:33]} 41. Ba2 {[%clk 0:00:04]}  Kg7 {[%clk 0:00:25]} 42. Nxh5+ {[%clk 0:00:02]}  gxh5 {[%clk 0:00:24]} 43. Qxh5 {[%clk 0:00:03]}  Bf6 {[%clk 0:00:19]} 44. Nd3 {[%clk 0:00:03]}  Rh8 {[%clk 0:00:19]} 45. Qe2 {[%clk 0:00:03]}  Rxh4+ {[%clk 0:00:19]} 46. Kg1 {[%clk 0:00:03]}  Rh6 {[%clk 0:00:18]} 47. Nf4 {[%clk 0:00:04]}  Qe5 {[%clk 0:00:18]} 48. Rc1 {[%clk 0:00:02]}  Re8 {[%clk 0:00:17]} 49. Rxc6 {[%clk 0:00:02]}  Reh8 {[%clk 0:00:17]} 50. Qf3 {[%clk 0:00:01]}  Qa1+ {[%clk 0:00:17]} 51. Kg2 {[%clk 0:00:01]}  Qh1# {[%clk 0:00:17]} 0-1


[Site "https://www.chess.com"]

[Event "Titled Tuesday Blitz July 13 2021"]
[White "Onyshchuk, Volodymyr"]
[Black "Wagner, Dinara"]
[WhiteFideId "14114038"]
[BlackFideId "24157570"]
[WhiteElo "2603"]
[BlackElo "2260"]
[Result "1-0"]
[Round "04"]
[TimeControl "180+1"]
[Date "2021.07.13"]
[WhiteClock "0:01:47"]
[BlackClock "0:00:29"]

1. Nf3 {[%clk 0:03:00]}  d5 {[%clk 0:02:56]} 2. g3 {[%clk 0:03:00]}  Bg4 {[%clk 0:02:54]} 3. Bg2 {[%clk 0:03:01]}  c6 {[%clk 0:02:54]} 4. O-O {[%clk 0:02:59]}  e6 {[%clk 0:02:54]} 5. d3 {[%clk 0:02:59]}  Nf6 {[%clk 0:02:52]} 6. Nbd2 {[%clk 0:02:57]}  Nbd7 {[%clk 0:02:51]} 7. e4 {[%clk 0:02:53]}  Bd6 {[%clk 0:02:07]} 8. h3 {[%clk 0:02:52]}  Bxf3 {[%clk 0:02:06]} 9. Qxf3 {[%clk 0:02:51]}  O-O {[%clk 0:02:03]} 10. Qe2 {[%clk 0:02:50]}  e5 {[%clk 0:02:00]} 11. exd5 {[%clk 0:02:43]}  Nxd5 {[%clk 0:02:00]} 12. Nc4 {[%clk 0:02:37]}  Bc7 {[%clk 0:02:00]} 13. Bd2 {[%clk 0:02:34]}  Re8 {[%clk 0:02:00]} 14. a4 {[%clk 0:02:33]}  Nc5 {[%clk 0:01:49]} 15. b4 {[%clk 0:02:29]}  Ne6 {[%clk 0:01:49]} 16. c3 {[%clk 0:02:30]}  Qf6 {[%clk 0:01:40]} 17. Rfe1 {[%clk 0:02:26]}  Nf8 {[%clk 0:01:07]} 18. b5 {[%clk 0:02:04]}  Rad8 {[%clk 0:01:02]} 19. Rab1 {[%clk 0:02:04]}  c5 {[%clk 0:00:48]} 20. a5 {[%clk 0:02:00]}  b6 {[%clk 0:00:46]} 21. axb6 {[%clk 0:01:59]}  axb6 {[%clk 0:00:47]} 22. Ra1 {[%clk 0:01:58]}  Bb8 {[%clk 0:00:35]} 23. Be4 {[%clk 0:01:56]}  g6 {[%clk 0:00:31]} 24. Ra6 {[%clk 0:01:53]}  Re6 {[%clk 0:00:31]} 25. h4 {[%clk 0:01:49]}  Nc7 {[%clk 0:00:29]} 26. Bg5 {[%clk 0:01:47]} 1-0


[Site "https://www.chess.com"]